[Event "Mentese ELO February 2022"]
[Site "Mentese"]
[Date "2022.02.20"]
[Round "6.1"]
[White "Turgut, Hakan"]
[Black "Hekimoglu, Mihriban"]
[Result "1-0"]
[ECO "C99"]
[WhiteElo "1805"]
[BlackElo "1479"]
[Annotator "NA"]
[PlyCount "97"]
[EventDate "2022.02.19"]
[EventCountry "TUR"]
[SourceTitle "playchess.com"]
[Source "ChessBase"]
[SourceQuality "1"]
[TimeControl "3600+30"]

1. e4 {[%emt 0:01:00]} e5 {[%emt 0:01:00]} 2. Nf3 {[%emt 0:00:00]} Nc6 {[%emt 0:00:00]} 3. Bb5 {[%emt 0:00:00]} a6 {[%emt 0:00:00]} 4. Ba4 {[%emt 0:00:00]} Nf6 {[%emt 0:00:00]} 5. O-O {[%emt 0:00:00]} Be7 {[%emt 0:00:00]} 6. Re1 {[%emt 0:00:30]} b5 {[%emt 0:00:30]} 7. Bb3 {[%emt 0:00:00]} d6 {[%emt 0:00:30]} 8. c3 {[%emt 0:00:00]} O-O {[%emt 0:00:30]} 9. h3 {[%emt 0:00:30]} Na5 {[%emt 0:00:00]} 10. Bc2 {[%emt 0:00:00]} c5 {[%emt 0:00:00]} 11. d4 {[%emt 0:00:00]} Qc7 {[%emt 0:00:00]} 12. Nbd2 {[%emt 0:00:00]} Bd7 {[%emt 0:04:00]} 13. Nf1 {[%emt 0:01:00]} Rfc8 {[%emt 0:00:30]} 14. Ne3 $1 {[%emt 0:03:30]} cxd4 {[%emt 0:04:30]} 15. cxd4 {[%emt 0:00:00]} Nc4 {[%emt 0:00:30]} 16. Nxc4 {[%emt 0:01:00]} bxc4 {[%emt 0:00:30]} 17. Bd2 {[%emt 0:00:30]} Bc6 {[%emt 0:05:30]} 18. Bc3 {[%emt 0:02:30]} Nd7 {[%emt 0:00:30]} 19. Nd2 {[%emt 0:03:30]} Bb7 {[%emt 0:01:30]} 20. Nf1 {[%emt 0:06:30]} Bf6 {[%emt 0:01:30]} 21. Ne3 {[%emt 0:02:30]} g6 {[%emt 0:01:30]} 22. Rf1 {[%emt 0:04:30]} Bg5 {[%emt 0:10:30]} 23. Qe2 {[%emt 0:03:30]} Nb6 {[%emt 0:04:30]} 24. g3 {[%emt 0:03:30]} (24. Rad1 $142) 24... Bf6 {[%emt 0:03:30]} 25. d5 {[%emt 0:02:30]} Qe7 {[%emt 0:04:30]} 26. a4 $16 {[%emt 0:01:30]} (26. Ba5 $142 Qc7 27. Bxb6 Qxb6 28. Nxc4) 26... a5 {[%emt 0:00:30]} 27. Qe1 {[%emt 0:01:30]} Rc5 {[%emt 0:01:30]} 28. Bd1 {[%emt 0:04:30]} Bc8 {[%emt 0:02:30]} 29. Kh2 {[%emt 0:01:30]} Bd7 {[%emt 0:00:30]} 30. Bc2 {[%emt 0:05:30]} Qe8 {[%emt 0:02:30]} 31. Qd1 {[%emt 0:00:00]} Qc8 {[%emt 0:01:30]} 32. h4 {[%emt 0:01:00]} Rc7 {[%emt 0:01:30]} 33. f4 {[%emt 0:01:30]} Qd8 {[%emt 0:00:37]} 34. f5 {[%emt 0:03:52]} h5 {[%emt 0:02:40]} 35. Qf3 {[%emt 0:01:35]} Kg7 {[%emt 0:00:16]} 36. Rf2 {[%emt 0:00:39]} Bc8 {[%emt 0:01:28]} 37. Raf1 {[%emt 0:00:26]} Nd7 {[%emt 0:00:04]} 38. Rg2 {[%emt 0:03:09]} Qh8 {[%emt 0:05:43]} 39. Qe2 {[%emt 0:00:30]} g5 {[%emt 0:01:27]} 40. Qe1 {[%emt 0:06:11]} Rca7 {[%emt 0:01:46]} 41. Nxc4 {[%emt 0:02:05]} Ba6 {[%emt 0:00:36]} 42. Nxd6 {[%emt 0:03:51]} Bxf1 {[%emt 0:00:18]} 43. Qxf1 {[%emt 0:00:02]} Qd8 {[%emt 0:03:15]} 44. Qd1 {[%emt 0:01:30]} g4 {[%emt 0:00:36]} 45. Nb5 {[%emt 0:00:36]} Rb7 {[%emt 0:00:15]} 46. d6 {[%emt 0:01:04]} Qb6 {[%emt 0:01:51]} 47. Bb3 {[%emt 0:01:38]} Nc5 {[%emt 0:00:23]} 48. Bd5 {[%emt 0:00:01]} Rd7 {[%emt 0:00:13]} 49. Bxa8 {[%emt 0:00:27]} 1-0

[Event "Mentese ELO February 2022"]
[Site "Mentese"]
[Date "2022.02.20"]
[Round "6.2"]
[White "Inci, Okan"]
[Black "Taskin, Arda"]
[Result "0-1"]
[ECO "E07"]
[WhiteElo "1703"]
[BlackElo "1652"]
[Annotator "NA"]
[PlyCount "202"]
[EventDate "2022.02.19"]
[EventCountry "TUR"]
[SourceTitle "playchess.com"]
[Source "ChessBase"]
[SourceQuality "1"]
[TimeControl "3600+30"]

1. d4 {[%emt 0:01:00]} d5 {[%emt 0:01:00]} 2. Nf3 {[%emt 0:00:30]} Nf6 {[%emt 0:00:00]} 3. c4 {[%emt 0:00:30]} e6 {[%emt 0:03:00]} 4. g3 {[%emt 0:01:30]} Be7 {[%emt 0:00:30]} 5. Bg2 {[%emt 0:00:30]} Nbd7 {[%emt 0:00:30]} 6. O-O {[%emt 0:01:30]} O-O {[%emt 0:00:00]} 7. cxd5 {[%emt 0:00:30]} exd5 {[%emt 0:00:00]} 8. Nc3 {[%emt 0:00:30]} c6 {[%emt 0:00:00]} 9. Bf4 {[%emt 0:00:30]} Re8 {[%emt 0:00:00]} 10. Qc2 {[%emt 0:01:30]} Nf8 {[%emt 0:01:30]} 11. Rad1 {[%emt 0:02:30]} Bd6 {[%emt 0:01:30]} 12. Bxd6 {[%emt 0:03:30]} Qxd6 {[%emt 0:01:30]} 13. Ne5 {[%emt 0:01:30]} Ng4 {[%emt 0:04:30]} 14. e4 {[%emt 0:03:30]} Nxe5 {[%emt 0:01:30]} 15. dxe5 {[%emt 0:00:30]} Qxe5 {[%emt 0:00:30]} 16. exd5 {[%emt 0:00:30]} cxd5 {[%emt 0:01:30]} 17. Rxd5 {[%emt 0:03:30]} Qe7 {[%emt 0:01:30]} 18. Rd2 {[%emt 0:04:30]} Be6 {[%emt 0:03:30]} 19. Nd5 {[%emt 0:02:30]} Bxd5 {[%emt 0:00:30]} 20. Rxd5 {[%emt 0:00:30]} Rad8 {[%emt 0:01:30]} 21. Qb3 {[%emt 0:02:30]} b6 {[%emt 0:00:30]} 22. a4 {[%emt 0:04:30]} Qc7 {[%emt 0:03:30]} 23. Rfd1 {[%emt 0:02:30]} Ne6 {[%emt 0:02:30]} 24. h4 {[%emt 0:09:30]} h6 {[%emt 0:01:30]} 25. Bf3 {[%emt 0:00:30]} Rxd5 {[%emt 0:04:30]} 26. Rxd5 {[%emt 0:02:30]} Rd8 {[%emt 0:06:30]} 27. Rxd8+ {[%emt 0:01:33]} Qxd8 {[%emt 0:00:30]} 28. Bd5 {[%emt 0:00:32]} Qd7 {[%emt 0:00:00]} 29. Bxe6 {[%emt 0:00:18]} fxe6 {[%emt 0:01:00]} 30. Qc4 {[%emt 0:01:50]} a5 {[%emt 0:02:30]} 31. Qf4 {[%emt 0:02:07]} Qc6 {[%emt 0:01:30]} 32. Kh2 {[%emt 0:00:54]} Qc5 {[%emt 0:03:30]} 33. Kg1 {[%emt 0:01:31]} Qc6 {[%emt 0:02:30]} 34. b3 {[%emt 0:01:14]} Kh7 {[%emt 0:01:30]} 35. Qe3 {[%emt 0:00:33]} Kg8 {[%emt 0:01:30]} 36. Qf4 {[%emt 0:01:27]} Kh7 {[%emt 0:00:30]} 37. Kh2 {[%emt 0:00:26]} Qd5 {[%emt 0:01:45]} 38. Qe3 {[%emt 0:00:26]} Qc6 {[%emt 0:01:05]} 39. Qd3+ {[%emt 0:00:28]} Kg8 {[%emt 0:00:36]} 40. g4 {[%emt 0:00:46]} Qc5 {[%emt 0:03:16]} 41. Qg3 {[%emt 0:00:35]} e5 {[%emt 0:02:18]} 42. g5 {[%emt 0:00:50]} hxg5 {[%emt 0:00:17]} 43. hxg5 {[%emt 0:00:01]} Kf7 {[%emt 0:00:20]} 44. Kg2 {[%emt 0:07:18]} Kg6 {[%emt 0:00:49]} 45. Kh3 {[%emt 0:00:49]} Qd5 {[%emt 0:01:20]} 46. Kg4 {[%emt 0:03:03]} Qe4+ {[%emt 0:00:27]} 47. f4 {[%emt 0:01:08]} Qf5+ {[%emt 0:01:46]} 48. Kf3 {[%emt 0:00:10]} exf4 {[%emt 0:00:37]} 49. Qxf4 {[%emt 0:00:53]} Qxg5 {[%emt 0:00:17]} 50. Qc4 {[%emt 0:00:30]} Qf5+ {[%emt 0:01:39]} 51. Kg3 {[%emt 0:01:01]} Qe5+ {[%emt 0:02:11]} 52. Kg2 {[%emt 0:00:26]} Kg5 {[%emt 0:01:05]} 53. Qc1+ {[%emt 0:00:23]} Qf4 {[%emt 0:00:35]} 54. Qc3 {[%emt 0:01:00]} Qf6 {[%emt 0:01:08]} 55. Qd2+ {[%emt 0:00:45]} Kh5 {[%emt 0:00:26]} 56. Qd1+ {[%emt 0:00:11]} Kh6 {[%emt 0:00:42]} 57. Qh1+ {[%emt 0:00:10]} Kg6 {[%emt 0:00:15]} 58. Qb1+ {[%emt 0:00:28]} Qf5 {[%emt 0:00:11]} 59. Qd1 {[%emt 0:00:48]} Qg5+ {[%emt 0:01:59]} 60. Kf2 {[%emt 0:00:10]} Qf6+ {[%emt 0:01:00]} 61. Kg2 {[%emt 0:00:29]} Qc6+ {[%emt 0:01:44]} 62. Kf2 {[%emt 0:00:26]} Qc5+ {[%emt 0:00:24]} 63. Kg2 {[%emt 0:00:30]} Qg5+ {[%emt 0:01:34]} 64. Kf2 {[%emt 0:00:19]} Qf4+ {[%emt 0:00:39]} 65. Kg2 {[%emt 0:00:21]} Kh6 {[%emt 0:00:34]} 66. Qc2 {[%emt 0:01:52]} Kg5 {[%emt 0:01:07]} 67. Qc3 {[%emt 0:00:29]} Qf6 {[%emt 0:00:46]} 68. Qg3+ {[%emt 0:00:44]} Kf5 {[%emt 0:00:14]} 69. Qd3+ {[%emt 0:00:11]} Ke5 {[%emt 0:00:21]} 70. Qb5+ {[%emt 0:00:14]} Ke4 {[%emt 0:00:42]} 71. Qe2+ {[%emt 0:00:21]} Kd4 {[%emt 0:00:44]} 72. Qc4+ {[%emt 0:00:40]} Ke3 {[%emt 0:00:28]} 73. Qc1+ {[%emt 0:00:12]} Kd3 {[%emt 0:00:20]} 74. Qc4+ {[%emt 0:00:11]} Kd2 {[%emt 0:00:15]} 75. Qd5+ {[%emt 0:00:24]} Kc2 {[%emt 0:00:17]} 76. b4 {[%emt 0:02:19]} axb4 {[%emt 0:00:57]} 77. Qe4+ {[%emt 0:00:18]} Kb3 {[%emt 0:00:46]} 78. Qd5+ {[%emt 0:00:30]} Ka3 {[%emt 0:00:26]} 79. a5 {[%emt 0:00:26]} Qb2+ {[%emt 0:00:41]} 80. Kf1 {[%emt 0:00:11]} bxa5 {[%emt 0:00:14]} 81. Qxa5+ {[%emt 0:00:17]} Kb3 {[%emt 0:00:08]} 82. Qd5+ {[%emt 0:00:23]} Kc3 {[%emt 0:00:16]} 83. Qc5+ {[%emt 0:00:28]} Kd2 {[%emt 0:00:11]} 84. Qg5+ {[%emt 0:00:30]} Kc2 {[%emt 0:00:26]} 85. Qf5+ {[%emt 0:00:33]} Kc1 {[%emt 0:00:11]} 86. Qf4+ {[%emt 0:00:30]} Qd2 {[%emt 0:01:09]} 87. Qc4+ {[%emt 0:00:14]} Kb2 {[%emt 0:00:25]} 88. Qg4 {[%emt 0:01:10]} Qc3 {[%emt 0:00:38]} 89. Qe2+ {[%emt 0:00:17]} Ka3 {[%emt 0:00:23]} 90. Qa6+ {[%emt 0:00:07]} Kb3 {[%emt 0:00:05]} 91. Kf2 {[%emt 0:00:31]} Kb2 {[%emt 0:00:16]} 92. Ke2 {[%emt 0:00:56]} b3 {[%emt 0:00:13]} 93. Qa4 {[%emt 0:00:33]} Kb1 {[%emt 0:00:30]} 94. Qg4 {[%emt 0:00:56]} Qc2+ {[%emt 0:01:07]} 95. Ke1 {[%emt 0:00:17]} Kb2 {[%emt 0:00:30]} 96. Qa4 {[%emt 0:00:41]} Kb1 {[%emt 0:00:52]} 97. Qg4 {[%emt 0:00:37]} Qc3+ {[%emt 0:00:22]} 98. Kd1 {[%emt 0:00:12]} Kb2 {[%emt 0:00:27]} 99. Qe6 {[%emt 0:00:47]} Qd3+ {[%emt 0:00:36]} 100. Ke1 {[%emt 0:00:12]} Kb1 {[%emt 0:00:10]} 101. Qf7 {[%emt 0:00:24]} g5 {[%emt 0:00:49]} 0-1

[Event "Mentese ELO February 2022"]
[Site "Mentese"]
[Date "2022.02.20"]
[Round "6.3"]
[White "Demir, Mehmet Sait"]
[Black "Seker, Bilgesu"]
[Result "1/2-1/2"]
[ECO "B55"]
[WhiteElo "1682"]
[BlackElo "1681"]
[Annotator "NA"]
[PlyCount "132"]
[EventDate "2022.02.19"]
[EventCountry "TUR"]
[SourceTitle "playchess.com"]
[Source "ChessBase"]
[SourceQuality "1"]
[TimeControl "3600+30"]

1. e4 {[%emt 0:00:00]} c5 {[%emt 0:01:00]} 2. Nf3 {[%emt 0:00:30]} d6 {[%emt 0:00:00]} 3. d4 {[%emt 0:00:30]} cxd4 {[%emt 0:00:00]} 4. Nxd4 {[%emt 0:00:30]} Nf6 {[%emt 0:00:30]} 5. Bd3 {[%emt 0:00:30]} g6 {[%emt 0:00:00]} 6. O-O {[%emt 0:00:00]} Bg7 {[%emt 0:00:00]} 7. c3 {[%emt 0:00:00]} O-O {[%emt 0:00:30]} 8. Nd2 {[%emt 0:00:30]} Nc6 {[%emt 0:03:30]} 9. N2f3 {[%emt 0:00:30]} e5 {[%emt 0:03:30]} 10. Nxc6 {[%emt 0:00:30]} bxc6 {[%emt 0:00:30]} 11. Qc2 {[%emt 0:00:30]} Re8 {[%emt 0:01:30]} 12. Re1 {[%emt 0:00:30]} Bg4 {[%emt 0:02:30]} 13. Qe2 {[%emt 0:01:30]} d5 {[%emt 0:04:30]} 14. h3 {[%emt 0:00:30]} Bd7 {[%emt 0:01:30]} 15. Bg5 {[%emt 0:00:30]} h6 {[%emt 0:00:30]} 16. Bh4 {[%emt 0:00:30]} Qc7 {[%emt 0:01:30]} 17. Bg3 {[%emt 0:00:30]} Nh5 {[%emt 0:00:30]} 18. Bh2 {[%emt 0:01:30]} Nf4 {[%emt 0:01:30]} 19. Bxf4 {[%emt 0:02:30]} exf4 {[%emt 0:00:00]} 20. Qc2 {[%emt 0:00:30]} Rab8 {[%emt 0:04:00]} 21. Rad1 {[%emt 0:00:30]} Qa5 {[%emt 0:01:30]} 22. a3 {[%emt 0:02:30]} Qb6 {[%emt 0:04:30]} 23. b4 {[%emt 0:01:30]} a5 {[%emt 0:00:30]} 24. Qd2 {[%emt 0:01:30]} axb4 {[%emt 0:01:30]} 25. axb4 {[%emt 0:00:30]} Qc7 {[%emt 0:02:30]} 26. Qc2 {[%emt 0:01:30]} Be6 {[%emt 0:03:30]} 27. Re2 {[%emt 0:02:30]} Ra8 {[%emt 0:02:30]} 28. Rde1 {[%emt 0:00:30]} dxe4 {[%emt 0:01:30]} 29. Rxe4 {[%emt 0:01:30]} Ra3 {[%emt 0:03:30]} 30. Nd4 {[%emt 0:00:30]} Bxd4 {[%emt 0:00:30]} 31. cxd4 {[%emt 0:00:30]} Qd6 {[%emt 0:05:30]} 32. Bc4 {[%emt 0:00:30]} Kh7 {[%emt 0:01:30]} 33. Qc1 {[%emt 0:03:30]} Raa8 {[%emt 0:01:02]} 34. Bxe6 {[%emt 0:02:30]} Rxe6 {[%emt 0:00:11]} 35. Rxe6 {[%emt 0:00:30]} fxe6 {[%emt 0:00:17]} 36. Qc4 {[%emt 0:00:30]} Re8 {[%emt 0:04:17]} 37. Re5 {[%emt 0:00:30]} Re7 {[%emt 0:00:33]} 38. Rc5 {[%emt 0:00:30]} e5 {[%emt 0:06:58]} 39. dxe5 {[%emt 0:01:30]} Qd1+ {[%emt 0:00:50]} 40. Kh2 {[%emt 0:01:30]} Qd2 {[%emt 0:01:30]} 41. Rxc6 {[%emt 0:03:30]} Qxf2 {[%emt 0:00:19]} 42. Qc3 {[%emt 0:00:30]} Qe3 {[%emt 0:02:38]} 43. b5 {[%emt 0:05:30]} Qxc3 {[%emt 0:00:25]} 44. Rxc3 {[%emt 0:00:30]} Rb7 {[%emt 0:01:05]} 45. Rc5 {[%emt 0:01:30]} Kg7 {[%emt 0:00:26]} 46. Kg1 {[%emt 0:00:30]} Kf7 {[%emt 0:00:54]} 47. Kf2 {[%emt 0:00:00]} Ke6 {[%emt 0:00:00]} 48. Kf3 {[%emt 0:00:00]} Kf5 {[%emt 0:00:21]} 49. e6+ {[%emt 0:00:30]} Kxe6 {[%emt 0:00:20]} 50. Kxf4 {[%emt 0:00:30]} Rf7+ {[%emt 0:01:12]} 51. Ke4 {[%emt 0:00:30]} Rf2 {[%emt 0:01:27]} 52. Rc6+ {[%emt 0:00:30]} Kf7 {[%emt 0:00:05]} 53. g4 {[%emt 0:01:30]} Rh2 {[%emt 0:00:29]} 54. Rc4 {[%emt 0:02:30]} Rb2 {[%emt 0:00:31]} 55. Rc5 {[%emt 0:00:00]} Kf6 {[%emt 0:00:35]} 56. Rc6+ {[%emt 0:00:00]} Kg5 {[%emt 0:00:41]} 57. b6 {[%emt 0:00:00]} h5 {[%emt 0:00:45]} 58. gxh5 {[%emt 0:01:00]} gxh5 {[%emt 0:00:07]} 59. Kd5 {[%emt 0:01:30]} Kh4 {[%emt 0:00:43]} 60. Rc4+ {[%emt 0:00:30]} Kxh3 {[%emt 0:00:18]} 61. Kc5 {[%emt 0:00:30]} h4 {[%emt 0:00:48]} 62. Rb4 {[%emt 0:00:30]} Rc2+ {[%emt 0:00:06]} 63. Kd6 {[%emt 0:00:30]} Rc8 {[%emt 0:00:55]} 64. b7 {[%emt 0:00:30]} Rb8 {[%emt 0:00:10]} 65. Kc7 {[%emt 0:00:30]} Rxb7+ {[%emt 0:00:15]} 66. Kxb7 {[%emt 0:00:00]} Kg2 {[%emt 0:00:04]} 1/2-1/2